[Event "Hungarian Youth-ch I 2024"]
[Site "Szolnok"]
[Date "2024.04.03"]
[Round "4.17"]
[White "Morovan-Szabo, Lorinc"]
[Black "Hangay, Oliver"]
[Result "0-1"]
[ECO "C50"]
[WhiteElo "1822"]
[BlackElo "1962"]
[Annotator "NA RC"]
[PlyCount "92"]
[EventDate "2024.03.31"]
[EventType "swiss"]
[EventCountry "HUN"]
[SourceTitle "playchess.com"]
[Source "ChessBase"]
[SourceQuality "1"]
[TimeControl "5400+30"]

1. e4 {[%emt 0:00:20]} e5 {[%emt 0:00:03]} 2. Nf3 {[%emt 0:00:27]} Nc6 {[%emt 0:00:01]} 3. Bc4 {[%emt 0:00:34]} Bc5 {[%emt 0:00:05]} 4. d3 {[%emt 0:00:19]} Nf6 {[%emt 0:00:47]} 5. Bg5 {[%emt 0:00:56]} h6 {[%emt 0:00:54]} 6. Bh4 {[%emt 0:00:21]} g5 {[%emt 0:05:14]} 7. Bg3 {[%emt 0:00:46]} d6 {[%emt 0:00:18]} 8. c3 {[%emt 0:00:44]} Be6 {[%emt 0:13:02]} 9. Bb3 {[%emt 0:00:58]} Bb6 {[%emt 0:03:27]} 10. Bc2 {[%emt 0:01:15]} Qe7 $15 {[%emt 0:04:03]} 11. Qe2 {[%emt 0:06:34]} Rg8 {[%emt 0:04:41]} 12. Nbd2 {[%emt 0:01:32]} O-O-O {[%emt 0:05:09]} 13. Nb3 {[%emt 0:01:34]} h5 {[%emt 0:11:03]} 14. h4 {[%emt 0:04:23]} g4 {[%emt 0:04:56]} 15. Ng5 {[%emt 0:00:49]} Bd7 {[%emt 0:06:33]} 16. Nd2 {[%emt 0:02:30]} Rde8 {[%emt 0:12:18]} 17. Bb3 {[%emt 0:02:11]} Nd8 {[%emt 0:00:13]} 18. Nc4 {[%emt 0:02:27]} Rg7 {[%emt 0:01:45]} 19. Ne3 {[%emt 0:07:40]} Bxe3 {[%emt 0:02:19]} 20. Qxe3 {[%emt 0:00:12]} Kb8 {[%emt 0:00:23]} 21. f4 {[%emt 0:01:02]} Ng8 {[%emt 0:02:05]} 22. f5 {[%emt 0:01:36]} f6 {[%emt 0:00:10]} 23. Ne6 {[%emt 0:00:13]} Nxe6 {[%emt 0:00:13]} 24. fxe6 {[%emt 0:00:18]} Bxe6 {[%emt 0:00:03]} 25. Bf2 {[%emt 0:00:46]} c5 {[%emt 0:04:21]} 26. Ba4 {[%emt 0:01:52]} Bd7 {[%emt 0:01:01]} 27. Bb3 {[%emt 0:00:30]} Bc6 {[%emt 0:00:03]} 28. c4 {[%emt 0:00:39]} Rf7 {[%emt 0:00:32]} 29. O-O-O {[%emt 0:01:06]} f5 {[%emt 0:00:44]} 30. Rhf1 {[%emt 0:00:54]} f4 {[%emt 0:00:25]} 31. Qe2 {[%emt 0:02:01]} g3 {[%emt 0:00:57]} 32. Be1 {[%emt 0:00:36]} Qxh4 {[%emt 0:00:10]} 33. Qf3 {[%emt 0:00:47]} Ref8 {[%emt 0:00:31]} 34. Rg1 {[%emt 0:00:37]} Bd7 {[%emt 0:02:22]} 35. Rd2 {[%emt 0:01:05]} Bg4 {[%emt 0:00:17]} 36. Qf1 {[%emt 0:00:09]} Ne7 {[%emt 0:00:54]} 37. Bd1 {[%emt 0:00:28]} Nc6 {[%emt 0:00:52]} 38. Rh1 {[%emt 0:00:30]} Qg5 {[%emt 0:00:08]} 39. Bf3 {[%emt 0:00:27]} Nd4 {[%emt 0:00:09]} 40. Rg1 {[%emt 0:00:24]} Rh7 {[%emt 0:01:19]} 41. Rh1 {[%emt 0:00:23]} Rfh8 {[%emt 0:00:09]} 42. Kd1 {[%emt 0:00:39]} h4 {[%emt 0:00:25]} 43. Kc1 {[%emt 0:00:14]} Bxf3 {[%emt 0:00:57]} 44. gxf3 {[%emt 0:00:11]} h3 {[%emt 0:00:14]} 45. Rg1 {[%emt 0:00:48]} h2 {[%emt 0:01:26]} 46. Rh1 {[%emt 0:00:07]} Qh5 {[%emt 0:00:05]} 0-1

[Event "Hungarian Youth-ch I 2024"]
[Site "Szolnok"]
[Date "2024.04.03"]
[Round "4.18"]
[White "Nagy, Norbert"]
[Black "Golya, David"]
[Result "1-0"]
[ECO "B50"]
[WhiteElo "1629"]
[BlackElo "1672"]
[Annotator "NA RC"]
[PlyCount "99"]
[EventDate "2024.03.31"]
[EventType "swiss"]
[EventCountry "HUN"]
[SourceTitle "playchess.com"]
[Source "ChessBase"]
[SourceQuality "1"]
[TimeControl "5400+30"]

1. e4 {[%emt 0:00:03]} c5 {[%emt 0:00:05]} 2. Nf3 {[%emt 0:00:10]} d6 {[%emt 0:00:05]} 3. Nc3 {[%emt 0:00:18]} Nf6 {[%emt 0:00:09]} 4. Bc4 {[%emt 0:00:09]} g6 {[%emt 0:00:08]} 5. O-O {[%emt 0:00:22]} Bg7 {[%emt 0:00:05]} 6. d4 {[%emt 0:00:05]} cxd4 {[%emt 0:00:08]} 7. Nxd4 {[%emt 0:00:07]} O-O {[%emt 0:00:16]} 8. Be3 {[%emt 0:00:29]} Nc6 {[%emt 0:00:05]} 9. Nde2 {[%emt 0:01:14]} Bd7 {[%emt 0:00:42]} 10. h3 {[%emt 0:00:30]} a6 {[%emt 0:00:24]} 11. a4 {[%emt 0:00:19]} Ne5 {[%emt 0:00:27]} 12. Bb3 {[%emt 0:00:46]} Qc8 {[%emt 0:08:51]} 13. f4 {[%emt 0:01:41]} Nc4 {[%emt 0:01:19]} 14. Bxc4 {[%emt 0:01:26]} Qxc4 {[%emt 0:00:06]} 15. e5 {[%emt 0:00:26]} Ne4 {[%emt 0:03:11]} 16. Nd5 {[%emt 0:03:46]} Rae8 {[%emt 0:03:54]} 17. Nb6 {[%emt 0:04:31]} Qc6 {[%emt 0:01:00]} 18. Nxd7 {[%emt 0:00:40]} Qxd7 {[%emt 0:00:07]} 19. Qd3 {[%emt 0:01:04]} Qc6 {[%emt 0:00:43]} 20. Nd4 {[%emt 0:00:55]} Nc5 {[%emt 0:00:52]} 21. Nxc6 {[%emt 0:03:24]} Nxd3 {[%emt 0:00:06]} 22. cxd3 {[%emt 0:00:46]} bxc6 {[%emt 0:00:06]} 23. d4 {[%emt 0:00:38]} Rb8 {[%emt 0:00:28]} 24. Rac1 {[%emt 0:00:45]} Rfc8 {[%emt 0:00:57]} 25. Rc2 {[%emt 0:01:31]} c5 {[%emt 0:17:35]} 26. dxc5 {[%emt 0:00:42]} dxe5 {[%emt 0:00:10]} 27. c6 {[%emt 0:00:27]} exf4 {[%emt 0:00:11]} 28. c7 {[%emt 0:01:56]} Rxb2 {[%emt 0:00:36]} 29. Rxb2 {[%emt 0:00:24]} Bxb2 {[%emt 0:00:06]} 30. Bxf4 {[%emt 0:00:14]} Bd4+ {[%emt 0:00:09]} 31. Kh1 {[%emt 0:00:51]} e5 {[%emt 0:00:05]} 32. Bh6 {[%emt 0:01:03]} Rxc7 {[%emt 0:00:25]} 33. Rf6 {[%emt 0:01:05]} Ra7 {[%emt 0:01:21]} 34. a5 {[%emt 0:00:34]} Bc3 {[%emt 0:01:02]} 35. Rc6 {[%emt 0:00:23]} Ra8 {[%emt 0:02:21]} 36. Rxc3 {[%emt 0:00:09]} f5 {[%emt 0:00:26]} 37. g4 {[%emt 0:00:14]} f4 {[%emt 0:00:15]} 38. Rc5 {[%emt 0:00:15]} Re8 {[%emt 0:11:37]} 39. Kg2 {[%emt 0:01:35]} Kf7 {[%emt 0:13:04]} 40. Kf3 {[%emt 0:01:08]} e4+ {[%emt 0:01:31]} 41. Kxf4 {[%emt 0:00:26]} e3 {[%emt 0:00:06]} 42. Rc1 {[%emt 0:00:22]} Kf6 {[%emt 0:00:58]} 43. g5+ {[%emt 0:01:14]} Kf7 {[%emt 0:00:48]} 44. Re1 {[%emt 0:00:20]} Rb8 {[%emt 0:00:28]} 45. Rxe3 {[%emt 0:00:18]} Rb4+ {[%emt 0:00:06]} 46. Ke5 {[%emt 0:00:32]} Rb5+ {[%emt 0:00:08]} 47. Kd6 {[%emt 0:00:07]} Rxa5 {[%emt 0:00:10]} 48. Re7+ {[%emt 0:00:16]} Kg8 {[%emt 0:00:13]} 49. Re8+ {[%emt 0:00:03]} Kf7 {[%emt 0:00:11]} 50. Rf8# 1-0

[Event "Hungarian Youth-ch I 2024"]
[Site "Szolnok"]
[Date "2024.04.03"]
[Round "4.19"]
[White "Fan, Xiaotong"]
[Black "Zhao, Yichen"]
[Result "1-0"]
[ECO "C17"]
[WhiteElo "1731"]
[BlackElo "1673"]
[Annotator "NA RC"]
[PlyCount "65"]
[EventDate "2024.03.31"]
[EventType "swiss"]
[EventCountry "HUN"]
[SourceTitle "playchess.com"]
[Source "ChessBase"]
[SourceQuality "1"]
[TimeControl "5400+30"]

1. e4 {[%emt 0:00:04]} e6 {[%emt 0:00:03]} 2. d4 {[%emt 0:00:07]} d5 {[%emt 0:00:05]} 3. Nc3 {[%emt 0:00:06]} Bb4 {[%emt 0:00:05]} 4. e5 {[%emt 0:00:06]} c5 {[%emt 0:00:04]} 5. Bd2 {[%emt 0:00:04]} cxd4 {[%emt 0:00:14]} 6. Nb5 {[%emt 0:00:08]} Bxd2+ {[%emt 0:01:33]} 7. Qxd2 {[%emt 0:00:09]} Nc6 {[%emt 0:00:10]} 8. Nf3 {[%emt 0:00:16]} Nge7 {[%emt 0:00:17]} 9. Bd3 {[%emt 0:00:27]} h6 {[%emt 0:00:16]} 10. O-O-O {[%emt 0:00:26]} O-O 11. Nbxd4 {[%emt 0:02:55]} Qa5 {[%emt 0:07:55]} 12. Nxc6 {[%emt 0:08:32]} Qxd2+ {[%emt 0:00:27]} 13. Rxd2 {[%emt 0:00:06]} Nxc6 {[%emt 0:00:07]} 14. Re1 {[%emt 0:06:39]} Bd7 {[%emt 0:00:52]} 15. Kb1 {[%emt 0:08:59]} a6 {[%emt 0:00:43]} 16. c4 {[%emt 0:20:49]} Nb4 {[%emt 0:02:07]} 17. a3 {[%emt 0:03:08]} Nxd3 {[%emt 0:02:43]} 18. Rxd3 {[%emt 0:00:38]} Bc6 {[%emt 0:00:21]} 19. c5 {[%emt 0:00:22]} a5 {[%emt 0:00:25]} 20. Nd4 {[%emt 0:00:16]} Rfc8 {[%emt 0:00:47]} 21. f4 {[%emt 0:01:08]} a4 {[%emt 0:00:27]} 22. Rc3 {[%emt 0:01:00]} Rab8 {[%emt 0:01:45]} 23. g4 {[%emt 0:02:47]} b5 {[%emt 0:01:12]} 24. cxb6 {[%emt 0:00:59]} Rxb6 {[%emt 0:00:11]} 25. Rec1 {[%emt 0:00:09]} Rcb8 {[%emt 0:01:33]} 26. Nxc6 {[%emt 0:01:10]} Rxb2+ {[%emt 0:00:24]} 27. Ka1 {[%emt 0:00:04]} R8b3 {[%emt 0:00:38]} 28. Rxb3 {[%emt 0:01:55]} Rxb3 {[%emt 0:00:14]} 29. Ka2 {[%emt 0:00:16]} Rh3 {[%emt 0:00:24]} 30. Rc2 {[%emt 0:00:19]} Rf3 {[%emt 0:00:22]} 31. f5 {[%emt 0:00:12]} exf5 {[%emt 0:00:33]} 32. gxf5 {[%emt 0:00:08]} Kh7 {[%emt 0:00:22]} 33. e6 1-0

[Event "Hungarian Youth-ch I 2024"]
[Site "Szolnok"]
[Date "2024.04.03"]
[Round "4.20"]
[White "Cser, Matyas"]
[Black "Botond, Laszlo"]
[Result "0-1"]
[ECO "B40"]
[WhiteElo "1420"]
[BlackElo "1831"]
[Annotator "NA RC"]
[PlyCount "134"]
[EventDate "2024.03.31"]
[EventType "swiss"]
[EventCountry "HUN"]
[SourceTitle "playchess.com"]
[Source "ChessBase"]
[SourceQuality "1"]
[TimeControl "5400+30"]

1. e4 {[%emt 0:00:01]} c5 {[%emt 0:00:16]} 2. Nf3 {[%emt 0:00:04]} e6 {[%emt 0:00:25]} 3. c3 {[%emt 0:00:13]} Nc6 {[%emt 0:01:56]} 4. Bb5 {[%emt 0:00:14]} Nge7 {[%emt 0:00:48]} 5. d3 {[%emt 0:01:05]} b6 {[%emt 0:02:01]} 6. Bg5 {[%emt 0:00:27]} Bb7 {[%emt 0:00:33]} 7. Bxc6 {[%emt 0:00:17]} Bxc6 {[%emt 0:00:42]} 8. Nbd2 {[%emt 0:00:35]} Qc7 {[%emt 0:01:14]} 9. O-O {[%emt 0:01:11]} Ng6 {[%emt 0:01:04]} 10. a4 {[%emt 0:06:00]} h6 {[%emt 0:06:13]} 11. Bh4 {[%emt 0:07:24]} Bd6 {[%emt 0:03:17]} 12. Nc4 {[%emt 0:05:59]} Bxh2+ {[%emt 0:07:19]} 13. Nxh2 {[%emt 0:04:31]} Nxh4 {[%emt 0:00:13]} 14. Qh5 {[%emt 0:03:39]} Ng6 {[%emt 0:05:04]} 15. e5 {[%emt 0:12:56]} O-O {[%emt 0:02:31]} 16. f4 {[%emt 0:09:55]} Ne7 {[%emt 0:04:13]} 17. Nd6 {[%emt 0:05:45]} Nc8 {[%emt 0:06:07]} 18. Nxc8 {[%emt 0:03:40]} Qxc8 {[%emt 0:03:21]} 19. Ng4 {[%emt 0:05:04]} Kh7 {[%emt 0:06:09]} 20. Kf2 {[%emt 0:05:58]} Rg8 {[%emt 0:01:22]} 21. Rh1 {[%emt 0:01:12]} Qf8 {[%emt 0:00:36]} 22. Rh2 {[%emt 0:00:57]} Rh8 {[%emt 0:00:11]} 23. Rah1 {[%emt 0:00:19]} Kg8 {[%emt 0:00:08]} 24. Nf6+ {[%emt 0:05:50]} gxf6 {[%emt 0:01:39]} 25. exf6 {[%emt 0:00:12]} Rh7 {[%emt 0:01:06]} 26. g4 {[%emt 0:03:30]} Qd6 {[%emt 0:00:59]} 27. Rg1 {[%emt 0:02:07]} Qxf4+ {[%emt 0:00:12]} 28. Ke1 {[%emt 0:00:59]} Qe3+ {[%emt 0:00:28]} 29. Kf1 {[%emt 0:00:20]} Qxd3+ {[%emt 0:02:34]} 30. Re2 {[%emt 0:00:43]} Qf3+ {[%emt 0:00:11]} 31. Ke1 {[%emt 0:00:12]} Qxf6 {[%emt 0:00:35]} 32. Rh2 {[%emt 0:02:15]} Qg5 {[%emt 0:00:43]} 33. Qh3 {[%emt 0:01:03]} Qc1+ {[%emt 0:00:46]} 34. Kf2 {[%emt 0:00:26]} Qxb2+ {[%emt 0:00:12]} 35. Kf1 {[%emt 0:00:35]} Qc1+ {[%emt 0:00:22]} 36. Kf2 {[%emt 0:00:07]} Qd2+ {[%emt 0:00:09]} 37. Kf1 {[%emt 0:01:08]} Qg5 {[%emt 0:01:39]} 38. Qg3 {[%emt 0:01:13]} Bxa4 {[%emt 0:01:56]} 39. Rh5 {[%emt 0:00:36]} Qc1+ {[%emt 0:00:25]} 40. Kg2 {[%emt 0:01:32]} Qd2+ {[%emt 0:01:09]} 41. Kh3 {[%emt 0:00:29]} Bb5 {[%emt 0:01:22]} 42. Kh4 {[%emt 0:00:48]} f6 {[%emt 0:01:58]} 43. Rg2 {[%emt 0:00:57]} Qd3 {[%emt 0:00:37]} 44. Qf4 {[%emt 0:00:31]} Qg6 {[%emt 0:01:43]} 45. Kg3 {[%emt 0:00:34]} e5 {[%emt 0:01:38]} 46. Qd2 {[%emt 0:00:23]} Qd3+ {[%emt 0:00:11]} 47. Qxd3 {[%emt 0:00:07]} Bxd3 {[%emt 0:00:12]} 48. Rgh2 {[%emt 0:00:04]} a5 {[%emt 0:00:55]} 49. Rxh6 {[%emt 0:00:09]} a4 {[%emt 0:00:26]} 50. Rxh7 {[%emt 0:00:09]} Bxh7 {[%emt 0:00:13]} 51. Ra2 {[%emt 0:00:04]} a3 {[%emt 0:00:07]} 52. Kf2 {[%emt 0:00:05]} Bb1 {[%emt 0:00:03]} 53. Ra1 {[%emt 0:00:10]} a2 {[%emt 0:00:17]} 54. Ke2 {[%emt 0:00:04]} b5 {[%emt 0:00:18]} 55. Ke3 {[%emt 0:00:00]} b4 {[%emt 0:00:00]} 56. Kd2 {[%emt 0:00:00]} b3 {[%emt 0:00:00]} 57. Kc1 {[%emt 0:00:01]} e4 {[%emt 0:00:00]} 58. c4 {[%emt 0:00:11]} e3 {[%emt 0:00:00]} 59. Kd1 {[%emt 0:00:05]} b2 {[%emt 0:00:00]} 60. Ke2 {[%emt 0:00:10]} bxa1=Q {[%emt 0:01:45]} 61. Kxe3 {[%emt 0:00:07]} Qd4+ {[%emt 0:00:24]} 62. Kf3 {[%emt 0:00:21]} Ra3+ {[%emt 0:00:10]} 63. Kg2 {[%emt 0:00:16]} Qd2+ {[%emt 0:00:15]} 64. Kg1 {[%emt 0:00:15]} Rh3 {[%emt 0:00:22]} 65. g5 {[%emt 0:00:21]} fxg5 {[%emt 0:00:17]} 66. Kf1 {[%emt 0:00:09]} Bd3+ {[%emt 0:00:27]} 67. Kg1 {[%emt 0:00:26]} a1=R# 0-1

[Event "Hungarian Youth-ch I 2024"]
[Site "Szolnok"]
[Date "2024.04.03"]
[Round "4.21"]
[White "Kovacs, Veronika"]
[Black "Sipos, Stefania"]
[Result "0-1"]
[ECO "E00"]
[WhiteElo "1931"]
[BlackElo "1885"]
[Annotator "RC"]
[PlyCount "116"]
[EventDate "2024.03.31"]
[EventType "swiss"]
[EventCountry "HUN"]
[SourceTitle "playchess.com"]
[Source "ChessBase"]
[SourceQuality "1"]
[TimeControl "5400+30"]

1. d4 {[%emt 0:00:03]} e6 {[%emt 0:00:09]} 2. c4 {[%emt 0:02:12]} Bb4+ {[%emt 0:00:12]} 3. Nc3 {[%emt 0:00:06]} b6 {[%emt 0:00:22]} 4. Nf3 {[%emt 0:00:18]} Bb7 {[%emt 0:00:20]} 5. e3 {[%emt 0:00:23]} Nf6 {[%emt 0:00:31]} 6. Bd2 {[%emt 0:00:08]} O-O {[%emt 0:02:12]} 7. Bd3 {[%emt 0:02:47]} Bxc3 {[%emt 0:02:56]} 8. Bxc3 {[%emt 0:00:11]} Ne4 {[%emt 0:00:57]} 9. Bxe4 {[%emt 0:05:08]} Bxe4 {[%emt 0:00:06]} 10. d5 {[%emt 0:04:01]} exd5 {[%emt 0:18:23]} 11. cxd5 {[%emt 0:06:39]} Qe7 {[%emt 0:07:45]} 12. Qd4 {[%emt 0:14:47]} f6 {[%emt 0:03:16]} 13. Nd2 {[%emt 0:05:29]} Bg6 {[%emt 0:08:26]} 14. h4 {[%emt 0:04:30]} h6 {[%emt 0:05:52]} 15. g4 {[%emt 0:15:45]} d6 {[%emt 0:07:30]} 16. g5 {[%emt 0:06:29]} h5 {[%emt 0:05:20]} 17. Ke2 {[%emt 0:10:28]} f5 {[%emt 0:02:40]} 18. f4 {[%emt 0:00:25]} a5 {[%emt 0:05:50]} 19. a3 {[%emt 0:02:36]} a4 {[%emt 0:01:28]} 20. Rae1 {[%emt 0:02:10]} Nd7 {[%emt 0:02:44]} 21. Kd1 {[%emt 0:01:06]} Nc5 {[%emt 0:01:58]} 22. Rhf1 {[%emt 0:01:58]} Rae8 {[%emt 0:04:51]} 23. Rf2 {[%emt 0:00:56]} Qd7 {[%emt 0:01:53]} 24. Kc2 {[%emt 0:05:55]} Re7 {[%emt 0:01:51]} 25. Bb4 {[%emt 0:02:06]} Ne4 {[%emt 0:00:47]} 26. Nxe4 {[%emt 0:00:46]} Rxe4 {[%emt 0:00:13]} 27. Qd3 {[%emt 0:00:33]} Rfe8 {[%emt 0:02:33]} 28. Bc3 {[%emt 0:03:23]} Qe7 {[%emt 0:02:32]} 29. Bd4 {[%emt 0:00:44]} Qf7 {[%emt 0:01:25]} 30. Qc4 {[%emt 0:01:05]} b5 {[%emt 0:00:24]} 31. Qc3 {[%emt 0:00:58]} R8e7 {[%emt 0:00:55]} 32. Rd1 {[%emt 0:00:38]} Qxd5 {[%emt 0:00:48]} 33. Bxg7 {[%emt 0:01:29]} Qb3+ {[%emt 0:00:45]} 34. Kd2 {[%emt 0:00:44]} Rxg7 {[%emt 0:00:16]} 35. Rc1 {[%emt 0:00:30]} Qd5+ {[%emt 0:01:36]} 36. Ke2 {[%emt 0:00:27]} Rge7 {[%emt 0:00:43]} 37. Rf3 {[%emt 0:00:15]} Rc4 {[%emt 0:02:09]} 38. Qe1 {[%emt 0:00:38]} Rxc1 {[%emt 0:00:23]} 39. Qxc1 {[%emt 0:00:06]} Bf7 {[%emt 0:00:36]} 40. Kf2 {[%emt 0:00:48]} Qc4 {[%emt 0:00:43]} 41. Qd2 {[%emt 0:00:25]} Bd5 {[%emt 0:01:27]} 42. Rg3 {[%emt 0:00:07]} Be4 {[%emt 0:00:21]} 43. g6 {[%emt 0:00:35]} Qc2 {[%emt 0:00:33]} 44. Qxc2 {[%emt 0:00:11]} Bxc2 {[%emt 0:00:04]} 45. Rg5 {[%emt 0:00:05]} Re6 {[%emt 0:00:29]} 46. Rxh5 {[%emt 0:00:53]} Rxg6 {[%emt 0:00:10]} 47. Rg5 {[%emt 0:00:13]} Kh7 {[%emt 0:01:36]} 48. Ke2 {[%emt 0:01:21]} c5 {[%emt 0:01:07]} 49. h5 {[%emt 0:00:40]} Rf6 {[%emt 0:00:27]} 50. Rg1 {[%emt 0:00:30]} Kh6 {[%emt 0:00:29]} 51. Rg8 {[%emt 0:00:36]} Kxh5 {[%emt 0:01:13]} 52. Rb8 {[%emt 0:00:14]} Bb3 {[%emt 0:00:04]} 53. Kd2 {[%emt 0:00:13]} Bc4 {[%emt 0:00:12]} 54. Rb6 {[%emt 0:00:24]} Kg4 {[%emt 0:00:12]} 55. Rb7 {[%emt 0:00:18]} Kf3 {[%emt 0:00:13]} 56. Re7 {[%emt 0:00:17]} Rh6 {[%emt 0:00:59]} 57. Kc3 {[%emt 0:00:33]} Re6 {[%emt 0:00:13]} 58. Rxe6 {[%emt 0:00:33]} Bxe6 {[%emt 0:00:05]} 0-1

[Event "Hungarian Youth-ch I 2024"]
[Site "Szolnok"]
[Date "2024.04.03"]
[Round "4.22"]
[White "Harkai, Emma"]
[Black "Kiraly, Lilla Virag"]
[Result "1/2-1/2"]
[ECO "B24"]
[WhiteElo "1918"]
[BlackElo "1923"]
[Annotator "RC"]
[PlyCount "113"]
[EventDate "2024.03.31"]
[EventType "swiss"]
[EventCountry "HUN"]
[SourceTitle "playchess.com"]
[Source "ChessBase"]
[SourceQuality "1"]
[TimeControl "5400+30"]

1. e4 {[%emt 0:00:04]} c5 {[%emt 0:00:11]} 2. Nc3 {[%emt 0:00:37]} Nc6 {[%emt 0:04:43]} 3. Bb5 {[%emt 0:01:18]} e6 {[%emt 0:05:15]} 4. Bxc6 {[%emt 0:06:47]} bxc6 {[%emt 0:02:13]} 5. d3 {[%emt 0:01:45]} d5 {[%emt 0:08:30]} 6. Nf3 {[%emt 0:03:31]} Nf6 {[%emt 0:07:00]} 7. O-O {[%emt 0:03:14]} Be7 {[%emt 0:03:05]} 8. Re1 {[%emt 0:01:47]} O-O {[%emt 0:04:00]} 9. b3 {[%emt 0:05:11]} Ba6 {[%emt 0:10:43]} 10. Bg5 {[%emt 0:11:29]} h6 {[%emt 0:15:16]} 11. Bh4 {[%emt 0:01:37]} Re8 {[%emt 0:05:00]} 12. Bg3 {[%emt 0:04:03]} c4 {[%emt 0:05:16]} 13. Ne5 {[%emt 0:13:24]} Rc8 {[%emt 0:02:54]} 14. Na4 {[%emt 0:11:48]} Bb5 {[%emt 0:03:10]} 15. Nc3 {[%emt 0:02:56]} Bb4 {[%emt 0:03:22]} 16. Nxb5 {[%emt 0:01:44]} Bxe1 {[%emt 0:06:44]} 17. Nxf7 {[%emt 0:06:49]} Bxf2+ {[%emt 0:02:50]} 18. Kxf2 {[%emt 0:01:16]} Qb6+ {[%emt 0:00:33]} 19. Ke1 {[%emt 0:01:10]} Qg1+ {[%emt 0:02:46]} 20. Kd2 {[%emt 0:01:51]} Qxg2+ {[%emt 0:00:21]} 21. Qe2 {[%emt 0:00:29]} Qxe2+ {[%emt 0:00:21]} 22. Kxe2 {[%emt 0:00:06]} cxb5 {[%emt 0:00:20]} 23. Nd6 {[%emt 0:00:34]} cxd3+ {[%emt 0:02:43]} 24. cxd3 {[%emt 0:01:25]} dxe4 {[%emt 0:00:57]} 25. dxe4 {[%emt 0:06:32]} Red8 {[%emt 0:03:05]} 26. Nxc8 {[%emt 0:00:35]} Rxc8 {[%emt 0:00:07]} 27. Kd3 {[%emt 0:01:05]} Kf7 {[%emt 0:00:52]} 28. Rf1 {[%emt 0:02:06]} Kg6 {[%emt 0:00:28]} 29. Rg1 {[%emt 0:01:14]} Kh7 {[%emt 0:01:00]} 30. Be5 {[%emt 0:00:49]} Rd8+ {[%emt 0:00:42]} 31. Ke3 {[%emt 0:00:27]} Ne8 {[%emt 0:00:51]} 32. Rf1 {[%emt 0:03:24]} Kg8 {[%emt 0:00:28]} 33. Bd4 {[%emt 0:00:46]} Rd7 {[%emt 0:00:19]} 34. Bc5 {[%emt 0:01:20]} Nf6 {[%emt 0:00:24]} 35. h3 {[%emt 0:01:44]} Rc7 {[%emt 0:00:23]} 36. Bd4 {[%emt 0:00:29]} Nd7 {[%emt 0:00:49]} 37. e5 {[%emt 0:01:25]} Nf8 {[%emt 0:00:30]} 38. b4 {[%emt 0:01:13]} Ng6 {[%emt 0:00:31]} 39. Rg1 {[%emt 0:00:41]} Kh7 {[%emt 0:00:37]} 40. a3 {[%emt 0:00:41]} Ne7 {[%emt 0:00:30]} 41. Bc5 {[%emt 0:00:31]} Nf5+ {[%emt 0:00:19]} 42. Ke4 {[%emt 0:00:34]} a5 {[%emt 0:00:23]} 43. Rd1 {[%emt 0:00:34]} axb4 {[%emt 0:00:47]} 44. axb4 {[%emt 0:00:09]} Kg6 {[%emt 0:00:28]} 45. Rd8 {[%emt 0:00:39]} Kh5 {[%emt 0:00:31]} 46. Re8 {[%emt 0:00:00]} Rc6 {[%emt 0:00:29]} 47. Rxe6 {[%emt 0:01:23]} Rxe6 {[%emt 0:00:30]} 48. Kxf5 {[%emt 0:00:04]} Re8 {[%emt 0:00:26]} 49. e6 {[%emt 0:00:10]} Kh4 {[%emt 0:00:21]} 50. e7 {[%emt 0:00:16]} Kh5 {[%emt 0:00:48]} 51. Ke6 {[%emt 0:00:25]} Kg6 {[%emt 0:00:08]} 52. h4 {[%emt 0:01:21]} h5 {[%emt 0:00:08]} 53. Bb6 {[%emt 0:00:20]} Rh8 {[%emt 0:00:39]} 54. Bc7 {[%emt 0:00:21]} Re8 {[%emt 0:00:20]} 55. Bb6 {[%emt 0:00:16]} Rh8 {[%emt 0:00:25]} 56. Bc7 {[%emt 0:00:10]} Re8 {[%emt 0:01:00]} 57. Bb6 {[%emt 0:00:07]} 1/2-1/2

[Event "Hungarian Youth-ch I 2024"]
[Site "Szolnok"]
[Date "2024.04.03"]
[Round "4.23"]
[White "Buri, Petra Zsuzsanna"]
[Black "Alexandrova, Angelina"]
[Result "1-0"]
[ECO "C07"]
[WhiteElo "1972"]
[BlackElo "1812"]
[Annotator "RC"]
[PlyCount "111"]
[EventDate "2024.03.31"]
[EventType "swiss"]
[EventCountry "HUN"]
[SourceTitle "playchess.com"]
[Source "ChessBase"]
[SourceQuality "1"]
[TimeControl "5400+30"]

1. e4 {[%emt 0:02:19]} e6 {[%emt 0:01:07]} 2. d4 {[%emt 0:00:42]} d5 {[%emt 0:00:07]} 3. Nd2 {[%emt 0:00:17]} c5 {[%emt 0:00:05]} 4. exd5 {[%emt 0:00:26]} Qxd5 {[%emt 0:00:05]} 5. dxc5 {[%emt 0:00:13]} Bxc5 {[%emt 0:00:08]} 6. Ngf3 {[%emt 0:00:22]} Nf6 {[%emt 0:00:26]} 7. Bc4 {[%emt 0:00:37]} Qc6 {[%emt 0:00:13]} 8. Qe2 {[%emt 0:01:10]} O-O {[%emt 0:00:29]} 9. O-O {[%emt 0:01:32]} Nbd7 {[%emt 0:00:22]} 10. a4 {[%emt 0:04:16]} a5 {[%emt 0:03:15]} 11. Nb3 {[%emt 0:03:38]} b6 {[%emt 0:02:34]} 12. Bb5 {[%emt 0:08:24]} Qc7 {[%emt 0:04:57]} 13. Bg5 {[%emt 0:03:36]} Bb7 {[%emt 0:07:16]} 14. Nxc5 {[%emt 0:10:34]} Qxc5 {[%emt 0:01:49]} 15. Rfd1 {[%emt 0:11:48]} Bxf3 {[%emt 0:01:33]} 16. Qxf3 {[%emt 0:00:14]} Qxg5 {[%emt 0:00:37]} 17. Bxd7 {[%emt 0:00:10]} Nxd7 {[%emt 0:06:42]} 18. Rxd7 {[%emt 0:00:08]} Rad8 {[%emt 0:01:07]} 19. Qd3 {[%emt 0:09:58]} Rxd7 {[%emt 0:07:19]} 20. Qxd7 {[%emt 0:00:07]} Rd8 {[%emt 0:14:46]} 21. Qc7 {[%emt 0:03:42]} Qd5 {[%emt 0:02:51]} 22. h3 {[%emt 0:01:08]} Qd6 {[%emt 0:02:01]} 23. Qxd6 {[%emt 0:02:10]} Rxd6 {[%emt 0:00:05]} 24. Kf1 {[%emt 0:00:26]} Kf8 {[%emt 0:00:59]} 25. Ke2 {[%emt 0:00:14]} Ke7 {[%emt 0:00:13]} 26. c3 {[%emt 0:04:33]} f5 {[%emt 0:02:56]} 27. b4 {[%emt 0:05:35]} axb4 {[%emt 0:12:57]} 28. cxb4 {[%emt 0:00:07]} g5 {[%emt 0:00:23]} 29. a5 {[%emt 0:10:24]} bxa5 {[%emt 0:01:06]} 30. bxa5 {[%emt 0:00:18]} Ra6 {[%emt 0:00:12]} 31. g4 {[%emt 0:00:49]} Kd6 {[%emt 0:02:36]} 32. Ke3 {[%emt 0:01:02]} Kc5 {[%emt 0:04:12]} 33. Rc1+ {[%emt 0:02:28]} Kb4 {[%emt 0:05:22]} 34. Kd4 {[%emt 0:00:44]} e5+ {[%emt 0:02:19]} 35. Kxe5 {[%emt 0:02:36]} Rxa5+ {[%emt 0:00:06]} 36. Kf6 {[%emt 0:06:23]} fxg4 {[%emt 0:00:32]} 37. hxg4 {[%emt 0:00:05]} Ra2 {[%emt 0:01:20]} 38. Rf1 {[%emt 0:00:58]} h6 {[%emt 0:02:03]} 39. Kg7 {[%emt 0:00:04]} Kc4 {[%emt 0:02:55]} 40. Kxh6 {[%emt 0:00:14]} Kd3 {[%emt 0:01:26]} 41. Kxg5 {[%emt 0:00:29]} Ke2 {[%emt 0:00:09]} 42. Rh1 {[%emt 0:01:39]} Ra5+ {[%emt 0:00:08]} 43. Kf6 {[%emt 0:00:40]} Kxf2 {[%emt 0:00:20]} 44. Rh3 {[%emt 0:00:16]} Ra6+ {[%emt 0:01:15]} 45. Kg5 {[%emt 0:00:16]} Ra5+ {[%emt 0:01:52]} 46. Kg6 {[%emt 0:00:30]} Ra6+ {[%emt 0:00:09]} 47. Kh5 {[%emt 0:00:20]} Ra5+ {[%emt 0:01:21]} 48. g5 {[%emt 0:00:09]} Kg2 {[%emt 0:00:18]} 49. Rb3 {[%emt 0:00:21]} Kg1 {[%emt 0:00:38]} 50. Kh6 {[%emt 0:00:26]} Ra2 {[%emt 0:00:40]} 51. g6 {[%emt 0:00:15]} Rh2+ {[%emt 0:00:14]} 52. Kg7 {[%emt 0:00:08]} Rg2 {[%emt 0:00:11]} 53. Kh7 {[%emt 0:00:15]} Rh2+ {[%emt 0:00:06]} 54. Kg8 {[%emt 0:00:13]} Rg2 {[%emt 0:00:29]} 55. g7 {[%emt 0:00:07]} Rg4 {[%emt 0:00:16]} 56. Rb6 {[%emt 0:00:33]} 1-0